[Event "ESTCC 50 2019"]
[Site "Mali Losinj"]
[Date "2019.09.21"]
[Round "4.4"]
[White "Konopka, Michal"]
[Black "Fercec, Nenad"]
[Result "0-1"]
[ECO "E68"]
[WhiteElo "2351"]
[BlackElo "2439"]
[Annotator "NA"]
[PlyCount "96"]
[EventDate "2019.09.18"]
[EventType "team-tourn"]
[EventCountry "CRO"]
[SourceTitle "playchess.com"]
[Source "ChessBase"]
[SourceQuality "1"]
[WhiteTeam "Czech Republic"]
[BlackTeam "Croatia"]
[WhiteTeamCountry "CZE"]
[BlackTeamCountry "CRO"]
[TimeControl "40/5400+30:1800+30"]

1. Nf3 {[%emt 0:02:30]} Nf6 {[%emt 0:00:30]} 2. c4 {[%emt 0:00:30]} b6 {[%emt 0:00:00]} 3. g3 {[%emt 0:00:30]} Bb7 {[%emt 0:00:00]} 4. Bg2 {[%emt 0:00:00]} g6 {[%emt 0:00:30]} 5. O-O {[%emt 0:04:00]} Bg7 {[%emt 0:00:30]} 6. Nc3 {[%emt 0:01:30]} O-O {[%emt 0:01:30]} 7. Re1 {[%emt 0:03:30]} d6 {[%emt 0:02:30]} 8. e4 {[%emt 0:03:30]} e5 {[%emt 0:01:30]} 9. d4 {[%emt 0:00:30]} Nbd7 {[%emt 0:00:30]} 10. b3 {[%emt 0:14:30]} Re8 {[%emt 0:03:30]} 11. Bb2 {[%emt 0:02:30]} Nh5 {[%emt 0:02:30]} 12. Qd2 {[%emt 0:09:30]} Nf8 {[%emt 0:03:30]} 13. Rad1 {[%emt 0:07:30]} Ne6 {[%emt 0:01:30]} 14. dxe5 {[%emt 0:15:30]} dxe5 {[%emt 0:00:30]} 15. Qc1 {[%emt 0:04:30]} Qb8 {[%emt 0:01:30]} 16. Nd5 {[%emt 0:07:30]} c6 {[%emt 0:12:30]} 17. Nb4 {[%emt 0:00:30]} f6 {[%emt 0:11:30]} 18. Bh3 {[%emt 0:07:07]} Bf8 {[%emt 0:01:30]} 19. Nc2 {[%emt 0:01:51]} c5 {[%emt 0:00:30]} 20. Bg2 {[%emt 0:03:19]} Nd4 {[%emt 0:00:30]} 21. Nd2 {[%emt 0:04:14]} Bh6 {[%emt 0:13:30]} 22. Ne3 {[%emt 0:00:43]} Qd6 {[%emt 0:11:30]} 23. Nd5 {[%emt 0:00:24]} f5 {[%emt 0:02:30]} 24. Qb1 {[%emt 0:01:12]} f4 {[%emt 0:04:30]} 25. Nf3 {[%emt 0:00:55]} Bc8 {[%emt 0:00:30]} 26. Nxd4 {[%emt 0:00:37]} cxd4 {[%emt 0:00:30]} 27. Bf3 {[%emt 0:01:16]} Bh3 {[%emt 0:03:30]} 28. Rd3 {[%emt 0:00:14]} fxg3 {[%emt 0:02:10]} 29. hxg3 {[%emt 0:00:25]} Rf8 {[%emt 0:00:22]} 30. Bc1 {[%emt 0:00:36]} Be3 {[%emt 0:01:06]} 31. Bxe3 {[%emt 0:00:34]} Rxf3 {[%emt 0:00:14]} 32. Bg5 {[%emt 0:00:11]} Qf8 {[%emt 0:06:30]} 33. Qc2 {[%emt 0:01:41]} Bg4 {[%emt 0:02:14]} 34. Qd2 {[%emt 0:00:53]} Qf7 {[%emt 0:01:09]} 35. Bh6 {[%emt 0:00:36]} Ng7 {[%emt 0:01:00]} 36. Bxg7 {[%emt 0:00:29]} Kxg7 {[%emt 0:01:01]} 37. Rxf3 {[%emt 0:01:46]} Qxf3 {[%emt 0:00:14]} 38. Qg5 {[%emt 0:00:19]} Re8 {[%emt 0:00:50]} 39. Qh4 {[%emt 0:00:54]} h5 {[%emt 0:02:23]} 40. Qh1 {[%emt 0:00:36]} Qxh1+ {[%emt 0:00:00]} 41. Kxh1 {[%emt 0:02:08]} Bf3+ {[%emt 0:02:47]} 42. Kg1 {[%emt 0:02:30]} d3 {[%emt 0:00:30]} 43. Nc3 {[%emt 0:01:30]} d2 {[%emt 0:00:00]} 44. Ra1 {[%emt 0:00:00]} Rd8 {[%emt 0:00:00]} 45. Nd1 {[%emt 0:00:00]} Rd4 {[%emt 0:00:30]} 46. Kf1 {[%emt 0:00:30]} Rxe4 {[%emt 0:00:30]} 47. Nc3 {[%emt 0:00:00]} Rd4 {[%emt 0:00:00]} 48. Nd1 {[%emt 0:00:00]} a5 {[%emt 0:00:00]} 0-1

[Event "ESTCC 50 2019"]
[Site "Mali Losinj"]
[Date "2019.09.21"]
[Round "4.5"]
[White "Sulc, Damir"]
[Black "Burmakin, Vladimir"]
[Result "1/2-1/2"]
[ECO "B01"]
[WhiteElo "2207"]
[BlackElo "2496"]
[Annotator "ChessBase"]
[PlyCount "61"]
[EventDate "2019.09.18"]
[EventType "team-tourn"]
[EventCountry "CRO"]
[SourceTitle "playchess.com"]
[Source "ChessBase"]
[SourceQuality "1"]
[WhiteTeam "Croatia"]
[BlackTeam "Russia"]
[WhiteTeamCountry "CRO"]
[BlackTeamCountry "RUS"]
[TimeControl "40/5400+30:1800+30"]

1. e4 {[%emt 0:00:30]} d5 {[%emt 0:00:30]} 2. exd5 {[%emt 0:00:00]} Qxd5 {[%emt 0:00:00]} 3. Nc3 {[%emt 0:00:00]} Qd6 {[%emt 0:00:00]} 4. d4 {[%emt 0:00:30]} Nf6 {[%emt 0:00:00]} 5. Nf3 {[%emt 0:00:30]} c6 {[%emt 0:00:00]} 6. Ne5 {[%emt 0:00:30]} Nbd7 {[%emt 0:00:30]} 7. Bf4 {[%emt 0:07:30]} Nd5 {[%emt 0:00:00]} 8. Ne4 {[%emt 0:11:30]} Qb4+ {[%emt 0:01:00]} 9. c3 {[%emt 0:01:30]} Qb6 {[%emt 0:02:30]} 10. Nc4 {[%emt 0:05:30]} Qd8 {[%emt 0:00:00]} 11. Bg3 {[%emt 0:00:30]} N7f6 {[%emt 0:01:00]} 12. Bd3 {[%emt 0:12:30]} Nxe4 {[%emt 0:04:30]} 13. Bxe4 {[%emt 0:00:30]} Nf6 {[%emt 0:00:30]} 14. Bf3 {[%emt 0:00:30]} Be6 {[%emt 0:14:30]} 15. Qe2 {[%emt 0:02:30]} g6 {[%emt 0:00:30]} 16. O-O {[%emt 0:01:30]} Bg7 {[%emt 0:00:30]} 17. a4 {[%emt 0:06:30]} O-O {[%emt 0:00:30]} 18. a5 {[%emt 0:01:30]} Bd5 {[%emt 0:01:30]} 19. Rfe1 {[%emt 0:02:30]} Bxf3 {[%emt 0:20:30]} 20. Qxf3 {[%emt 0:00:30]} Qd5 {[%emt 0:00:00]} 21. Qd3 {[%emt 0:00:30]} Rfe8 {[%emt 0:00:00]} 22. Ne5 {[%emt 0:10:30]} Nd7 {[%emt 0:04:30]} 23. c4 {[%emt 0:10:30]} Nxe5 {[%emt 0:00:00]} 24. Bxe5 {[%emt 0:00:00]} Qd7 {[%emt 0:00:00]} 25. Bxg7 {[%emt 0:00:00]} Kxg7 {[%emt 0:00:30]} 26. Rad1 {[%emt 0:00:30]} Kg8 {[%emt 0:00:30]} 27. d5 {[%emt 0:04:30]} Rad8 {[%emt 0:02:30]} 28. Qc2 {[%emt 0:00:30]} cxd5 {[%emt 0:07:30]} 29. Rxd5 {[%emt 0:00:30]} Qc7 {[%emt 0:00:30]} 30. Rxd8 {[%emt 0:05:35]} Rxd8 {[%emt 0:00:00]} 31. Qc3 {[%emt 0:00:09]} 1/2-1/2

[Event "ESTCC 50 2019"]
[Site "Mali Losinj"]
[Date "2019.09.21"]
[Round "4.6"]
[White "Gleizerov, Evgeny"]
[Black "Dusper, Hrvoje"]
[Result "1-0"]
[ECO "E04"]
[WhiteElo "2503"]
[BlackElo "2221"]
[Annotator "ChessBase"]
[PlyCount "51"]
[EventDate "2019.09.18"]
[EventType "team-tourn"]
[EventCountry "CRO"]
[SourceTitle "playchess.com"]
[Source "ChessBase"]
[SourceQuality "1"]
[WhiteTeam "Russia"]
[BlackTeam "Croatia"]
[WhiteTeamCountry "RUS"]
[BlackTeamCountry "CRO"]
[TimeControl "40/5400+30:1800+30"]

1. d4 {[%emt 0:00:30]} d5 {[%emt 0:00:30]} 2. c4 {[%emt 0:00:00]} c6 {[%emt 0:00:30]} 3. Nf3 {[%emt 0:00:00]} Nf6 {[%emt 0:00:30]} 4. Nc3 {[%emt 0:00:00]} e6 {[%emt 0:00:30]} 5. g3 {[%emt 0:00:00]} dxc4 {[%emt 0:02:30]} 6. Bg2 {[%emt 0:00:30]} b5 {[%emt 0:02:30]} 7. Ne5 {[%emt 0:00:00]} a6 {[%emt 0:00:30]} 8. a4 {[%emt 0:05:00]} b4 {[%emt 0:05:30]} 9. Ne4 {[%emt 0:01:30]} Nxe4 {[%emt 0:08:30]} 10. Bxe4 {[%emt 0:01:30]} Bb7 {[%emt 0:00:00]} 11. Nxc4 {[%emt 0:02:30]} Nd7 {[%emt 0:01:00]} 12. a5 {[%emt 0:03:30]} Be7 {[%emt 0:12:30]} 13. O-O {[%emt 0:02:30]} O-O {[%emt 0:07:30]} 14. Bg2 {[%emt 0:00:30]} Qc8 {[%emt 0:01:30]} 15. e4 {[%emt 0:01:30]} Rd8 {[%emt 0:21:30]} 16. Bf4 {[%emt 0:06:30]} Ra7 {[%emt 0:04:30]} 17. Rc1 {[%emt 0:05:30]} Ba8 {[%emt 0:05:30]} 18. Nd6 {[%emt 0:02:30]} Bxd6 {[%emt 0:00:30]} 19. Bxd6 {[%emt 0:00:30]} Qb7 {[%emt 0:09:44]} 20. Qb3 {[%emt 0:02:30]} Qb5 {[%emt 0:02:34]} 21. Qxb4 {[%emt 0:01:30]} Qxb4 {[%emt 0:05:31]} 22. Bxb4 {[%emt 0:00:00]} Rb7 {[%emt 0:00:10]} 23. Bc3 {[%emt 0:02:00]} Rb3 {[%emt 0:01:39]} 24. Rfd1 {[%emt 0:01:30]} Rdb8 {[%emt 0:01:14]} 25. Bf1 {[%emt 0:01:30]} c5 {[%emt 0:03:57]} 26. dxc5 {[%emt 0:58:48]} 1-0

[Event "ESTCC 50 2019"]
[Site "Mali Losinj"]
[Date "2019.09.21"]
[Round "4.7"]
[White "Martic, Zlatko"]
[Black "Yakovich, Yuri"]
[Result "0-1"]
[ECO "B66"]
[WhiteElo "2283"]
[BlackElo "2518"]
[Annotator "ChessBase"]
[PlyCount "82"]
[EventDate "2019.09.18"]
[EventType "team-tourn"]
[EventCountry "CRO"]
[SourceTitle "playchess.com"]
[Source "ChessBase"]
[SourceQuality "1"]
[WhiteTeam "Croatia"]
[BlackTeam "Russia"]
[WhiteTeamCountry "CRO"]
[BlackTeamCountry "RUS"]
[TimeControl "40/5400+30:1800+30"]

1. e4 {[%emt 0:01:30]} c5 {[%emt 0:00:30]} 2. Nf3 {[%emt 0:00:30]} d6 {[%emt 0:00:00]} 3. d4 {[%emt 0:00:30]} cxd4 {[%emt 0:00:00]} 4. Nxd4 {[%emt 0:00:30]} Nf6 {[%emt 0:00:30]} 5. Nc3 {[%emt 0:00:00]} Nc6 {[%emt 0:00:00]} 6. Bg5 {[%emt 0:01:00]} e6 {[%emt 0:00:00]} 7. Qd2 {[%emt 0:00:30]} Be7 {[%emt 0:00:30]} 8. O-O-O {[%emt 0:02:30]} Nxd4 {[%emt 0:01:30]} 9. Qxd4 {[%emt 0:00:00]} a6 {[%emt 0:00:00]} 10. e5 {[%emt 0:05:00]} dxe5 {[%emt 0:01:00]} 11. Qxe5 {[%emt 0:00:30]} Bd7 {[%emt 0:00:30]} 12. Be2 {[%emt 0:01:30]} Rc8 {[%emt 0:31:30]} 13. Rd2 {[%emt 0:20:30]} Qc7 {[%emt 0:20:30]} 14. Qxc7 {[%emt 0:11:30]} Rxc7 {[%emt 0:00:00]} 15. Bf3 {[%emt 0:02:30]} Bc6 {[%emt 0:07:00]} 16. Bf4 {[%emt 0:02:30]} Rc8 {[%emt 0:00:30]} 17. Bxc6+ {[%emt 0:00:30]} Rxc6 {[%emt 0:00:30]} 18. Rhd1 {[%emt 0:00:00]} Rxc3 {[%emt 0:03:30]} 19. bxc3 {[%emt 0:00:00]} Ne4 {[%emt 0:00:30]} 20. Rd7 {[%emt 0:02:30]} Ba3+ {[%emt 0:00:30]} 21. Kb1 {[%emt 0:01:30]} Nxc3+ {[%emt 0:00:30]} 22. Ka1 {[%emt 0:00:30]} Nxd1 {[%emt 0:00:00]} 23. Rxd1 {[%emt 0:03:30]} Ke7 {[%emt 0:02:00]} 24. Rb1 {[%emt 0:23:43]} b5 {[%emt 0:00:30]} 25. c4 {[%emt 0:08:00]} bxc4 {[%emt 0:00:30]} 26. Be5 {[%emt 0:00:35]} Rd8 {[%emt 0:14:53]} 27. Rb7+ {[%emt 0:01:36]} Kf8 {[%emt 0:05:17]} 28. Kb1 {[%emt 0:00:14]} f6 {[%emt 0:00:52]} 29. Bc3 {[%emt 0:05:58]} Rd1+ {[%emt 0:02:58]} 30. Kc2 {[%emt 0:00:01]} Rf1 {[%emt 0:00:07]} 31. Bd4 {[%emt 0:00:41]} e5 {[%emt 0:01:35]} 32. Be3 {[%emt 0:00:01]} Ra1 {[%emt 0:00:22]} 33. Ra7 {[%emt 0:02:10]} Rxa2+ {[%emt 0:00:18]} 34. Kc3 {[%emt 0:00:09]} Bb2+ {[%emt 0:01:34]} 35. Kxc4 {[%emt 0:01:24]} Bd4 {[%emt 0:00:11]} 36. Bxd4 {[%emt 0:01:50]} exd4 {[%emt 0:00:04]} 37. Kxd4 {[%emt 0:01:13]} Rxf2 {[%emt 0:00:08]} 38. g3 {[%emt 0:00:11]} Rxh2 {[%emt 0:00:07]} 39. Rxa6 {[%emt 0:00:06]} Re2 {[%emt 0:00:16]} 40. Ra7 {[%emt 0:00:22]} Re7 {[%emt 0:00:05]} 41. Ra5 {[%emt 0:30:52]} Kf7 {[%emt 0:30:06]} 0-1

[Event "ESTCC 50 2019"]
[Site "Mali Losinj"]
[Date "2019.09.21"]
[Round "4.8"]
[White "Ibragimov, Ildar"]
[Black "Tirkajla, Boris"]
[Result "1-0"]
[ECO "A80"]
[WhiteElo "2537"]
[BlackElo "2060"]
[Annotator "ChessBase"]
[PlyCount "40"]
[EventDate "2019.09.18"]
[EventType "team-tourn"]
[EventCountry "CRO"]
[SourceTitle "playchess.com"]
[Source "ChessBase"]
[SourceQuality "1"]
[WhiteTeam "Russia"]
[BlackTeam "Croatia"]
[WhiteTeamCountry "RUS"]
[BlackTeamCountry "CRO"]
[TimeControl "40/5400+30:1800+30"]

1. d4 {[%emt 0:01:30]} f5 {[%emt 0:00:30]} 2. Bf4 {[%emt 0:01:30]} Nf6 {[%emt 0:00:00]} 3. e3 {[%emt 0:00:00]} g6 {[%emt 0:00:00]} 4. h4 {[%emt 0:01:00]} h6 {[%emt 0:02:30]} 5. Nf3 {[%emt 0:12:30]} d6 {[%emt 0:01:30]} 6. Nc3 {[%emt 0:00:30]} Bg7 {[%emt 0:00:30]} 7. Bd3 {[%emt 0:00:30]} O-O {[%emt 0:02:30]} 8. Qd2 {[%emt 0:00:30]} Kh7 {[%emt 0:19:30]} 9. e4 {[%emt 0:05:30]} fxe4 {[%emt 0:10:30]} 10. Nxe4 {[%emt 0:00:30]} Nh5 {[%emt 0:11:30]} 11. Be3 {[%emt 0:01:30]} e5 {[%emt 0:02:30]} 12. dxe5 {[%emt 0:10:30]} dxe5 {[%emt 0:07:30]} 13. Bc5 {[%emt 0:04:30]} Rf4 {[%emt 0:12:30]} 14. Neg5+ {[%emt 0:09:30]} Kh8 {[%emt 0:01:30]} 15. Qxf4 {[%emt 0:01:30]} Qxd3 {[%emt 0:02:30]} 16. Qf7 {[%emt 0:01:30]} Qd7 {[%emt 0:02:30]} 17. Qxg6 {[%emt 0:00:00]} Nf6 {[%emt 0:00:57]} 18. Nf7+ {[%emt 0:01:00]} Kg8 {[%emt 0:00:22]} 19. Nxh6+ {[%emt 0:01:30]} Kh8 {[%emt 0:00:11]} 20. Ng5 {[%emt 0:00:30]} Qd8 {[%emt 0:01:01]} 1-0

[Event "ESTCC 50 2019"]
[Site "Mali Losinj"]
[Date "2019.09.21"]
[Round "4.9"]
[White "Krebs, Johann"]
[Black "Druckenthaner, Andreas"]
[Result "1/2-1/2"]
[ECO "A80"]
[WhiteElo "2226"]
[BlackElo "2283"]
[Annotator "NA"]
[PlyCount "83"]
[EventDate "2019.09.18"]
[EventType "team-tourn"]
[EventCountry "CRO"]
[SourceTitle "playchess.com"]
[Source "ChessBase"]
[SourceQuality "1"]
[WhiteTeam "Austria"]
[BlackTeam "Austria"]
[WhiteTeamCountry "AUT"]
[BlackTeamCountry "AUT"]
[TimeControl "40/5400+30:1800+30"]

1. d4 {[%emt 0:00:30]} f5 {[%emt 0:00:30]} 2. Nf3 {[%emt 0:00:00]} Nf6 {[%emt 0:00:00]} 3. Bf4 {[%emt 0:00:00]} e6 {[%emt 0:01:00]} 4. e3 {[%emt 0:00:30]} d6 {[%emt 0:00:30]} 5. c4 {[%emt 0:01:30]} Nh5 {[%emt 0:04:30]} 6. Nc3 {[%emt 0:01:30]} Be7 {[%emt 0:01:30]} 7. Bd3 {[%emt 0:06:30]} O-O {[%emt 0:00:30]} 8. h3 {[%emt 0:09:30]} Nxf4 {[%emt 0:05:30]} 9. exf4 {[%emt 0:01:30]} Bf6 {[%emt 0:01:30]} 10. O-O {[%emt 0:10:30]} c5 {[%emt 0:05:30]} 11. dxc5 {[%emt 0:12:30]} dxc5 {[%emt 0:00:30]} 12. Qd2 {[%emt 0:00:30]} Nc6 {[%emt 0:00:30]} 13. Rfe1 {[%emt 0:09:30]} Bd7 {[%emt 0:09:30]} 14. Rad1 {[%emt 0:01:30]} Nd4 {[%emt 0:16:30]} 15. Nxd4 {[%emt 0:05:30]} cxd4 {[%emt 0:08:30]} 16. Ne2 {[%emt 0:03:30]} Qc7 {[%emt 0:00:30]} 17. Bc2 {[%emt 0:01:30]} Rad8 {[%emt 0:07:30]} 18. Nxd4 {[%emt 0:05:30]} Bxd4 {[%emt 0:03:30]} 19. Qxd4 {[%emt 0:02:30]} Ba4 {[%emt 0:00:30]} 20. Qc3 {[%emt 0:03:30]} Bxc2 {[%emt 0:00:30]} 21. Qxc2 {[%emt 0:01:30]} Qxf4 {[%emt 0:02:30]} 22. Qe2 {[%emt 0:03:12]} Rde8 {[%emt 0:02:30]} 23. Rd7 {[%emt 0:01:16]} Rf7 {[%emt 0:02:30]} 24. Rxf7 {[%emt 0:03:26]} Kxf7 {[%emt 0:00:30]} 25. Qh5+ {[%emt 0:00:02]} Kf8 {[%emt 0:00:30]} 26. Rd1 {[%emt 0:03:05]} Qxc4 {[%emt 0:05:30]} 27. Qxh7 {[%emt 0:00:54]} Qc7 {[%emt 0:01:29]} 28. h4 {[%emt 0:02:33]} Qe7 {[%emt 0:06:02]} 29. Rd3 {[%emt 0:01:07]} b6 {[%emt 0:03:17]} 30. Rg3 {[%emt 0:05:15]} Qf6 {[%emt 0:01:43]} 31. Rg6 {[%emt 0:00:49]} Qxb2 {[%emt 0:01:07]} 32. g3 {[%emt 0:00:32]} Qc1+ {[%emt 0:04:34]} 33. Kg2 {[%emt 0:00:44]} Qc6+ {[%emt 0:01:13]} 34. Kh2 {[%emt 0:00:13]} Qc3 {[%emt 0:00:59]} 35. h5 {[%emt 0:02:52]} Kf7 {[%emt 0:00:39]} 36. Rh6 {[%emt 0:00:30]} Rg8 {[%emt 0:00:27]} 37. Rxe6 {[%emt 0:01:46]} Kxe6 {[%emt 0:00:24]} 38. Qxg8+ {[%emt 0:00:01]} Ke7 {[%emt 0:01:37]} 39. Qd5 {[%emt 0:01:03]} Qc5 {[%emt 0:00:46]} 40. Qf3 {[%emt 0:00:29]} b5 {[%emt 0:00:00]} 41. Kh3 {[%emt 0:08:11]} Ke6 {[%emt 0:08:13]} 42. Qf4 {[%emt 0:07:57]} 1/2-1/2

[Event "ESTCC 50 2019"]
[Site "Mali Losinj"]
[Date "2019.09.21"]
[Round "4.10"]
[White "Opl, Klaus"]
[Black "Wegerer, Fred"]
[Result "0-1"]
[ECO "B40"]
[WhiteElo "2207"]
[BlackElo "2171"]
[Annotator "NA"]
[PlyCount "74"]
[EventDate "2019.09.18"]
[EventType "team-tourn"]
[EventCountry "CRO"]
[SourceTitle "playchess.com"]
[Source "ChessBase"]
[SourceQuality "1"]
[WhiteTeam "Austria"]
[BlackTeam "Austria"]
[WhiteTeamCountry "AUT"]
[BlackTeamCountry "AUT"]
[TimeControl "40/5400+30:1800+30"]

1. e4 {[%emt 0:00:30]} c5 {[%emt 0:00:30]} 2. Nf3 {[%emt 0:00:00]} e6 {[%emt 0:00:00]} 3. d4 {[%emt 0:00:00]} cxd4 {[%emt 0:00:00]} 4. Nxd4 {[%emt 0:00:30]} Nf6 {[%emt 0:00:30]} 5. Nc3 {[%emt 0:00:30]} Nc6 {[%emt 0:00:30]} 6. Ndb5 {[%emt 0:00:30]} Bc5 {[%emt 0:00:30]} 7. Be3 {[%emt 0:00:30]} Bxe3 {[%emt 0:04:30]} 8. Nd6+ {[%emt 0:00:30]} Ke7 {[%emt 0:06:30]} 9. fxe3 {[%emt 0:00:30]} Qb6 {[%emt 0:17:30]} 10. Nc4 {[%emt 0:09:30]} Qc5 {[%emt 0:02:30]} 11. Na4 {[%emt 0:05:30]} Qg5 {[%emt 0:00:30]} 12. Qd6+ {[%emt 0:03:30]} Kd8 {[%emt 0:00:30]} 13. Nc3 {[%emt 0:05:30]} Ne8 {[%emt 0:10:30]} 14. Qf4 {[%emt 0:05:30]} Qc5 {[%emt 0:12:30]} 15. e5 {[%emt 0:04:30]} f6 {[%emt 0:13:30]} 16. exf6 {[%emt 0:08:30]} gxf6 {[%emt 0:06:30]} 17. O-O-O {[%emt 0:01:30]} Qg5 {[%emt 0:07:52]} 18. Qe4 {[%emt 0:09:30]} Ke7 {[%emt 0:00:46]} 19. h4 {[%emt 0:03:30]} Qg6 {[%emt 0:01:50]} 20. Qf3 {[%emt 0:03:30]} d5 {[%emt 0:00:24]} 21. Rxd5 {[%emt 0:05:30]} exd5 {[%emt 0:02:13]} 22. Nxd5+ {[%emt 0:00:30]} Kf8 {[%emt 0:02:04]} 23. e4 {[%emt 0:01:30]} Be6 {[%emt 0:02:35]} 24. Qa3+ {[%emt 0:01:30]} Kg7 {[%emt 0:00:28]} 25. Nf4 {[%emt 0:03:30]} Qh6 {[%emt 0:00:41]} 26. Qg3+ {[%emt 0:01:30]} Kf7 {[%emt 0:00:37]} 27. Ne3 {[%emt 0:01:30]} Rg8 {[%emt 0:00:25]} 28. Qf2 {[%emt 0:00:30]} Nd6 {[%emt 0:01:39]} 29. Nxe6 {[%emt 0:02:30]} Kxe6 {[%emt 0:00:06]} 30. Kb1 {[%emt 0:00:30]} Ne5 {[%emt 0:01:31]} 31. Qd2 {[%emt 0:04:14]} Rad8 {[%emt 0:00:33]} 32. Qc3 {[%emt 0:01:02]} Rg3 {[%emt 0:02:19]} 33. Qb3+ {[%emt 0:00:31]} Kd7 {[%emt 0:00:11]} 34. Bb5+ {[%emt 0:00:43]} Kc8 {[%emt 0:00:06]} 35. Qe6+ {[%emt 0:01:33]} Kb8 {[%emt 0:00:05]} 36. Rd1 {[%emt 0:03:05]} Rxe3 {[%emt 0:00:09]} 37. a4 {[%emt 0:00:10]} Qf8 {[%emt 0:00:18]} 0-1

[Event "ESTCC 50 2019"]
[Site "Mali Losinj"]
[Date "2019.09.21"]
[Round "4.11"]
[White "Kainz, Josef"]
[Black "Watzka, Horst"]
[Result "1/2-1/2"]
[ECO "A60"]
[WhiteElo "1922"]
[BlackElo "2187"]
[Annotator "NA"]
[PlyCount "26"]
[EventDate "2019.09.18"]
[EventType "team-tourn"]
[EventCountry "CRO"]
[SourceTitle "playchess.com"]
[Source "ChessBase"]
[SourceQuality "1"]
[WhiteTeam "Austria"]
[BlackTeam "Austria"]
[WhiteTeamCountry "AUT"]
[BlackTeamCountry "AUT"]
[TimeControl "40/5400+30:1800+30"]

1. d4 {[%emt 0:00:30]} Nf6 {[%emt 0:00:30]} 2. c4 {[%emt 0:01:30]} e6 {[%emt 0:04:30]} 3. g3 {[%emt 0:03:30]} c5 {[%emt 0:02:30]} 4. d5 {[%emt 0:04:30]} exd5 {[%emt 0:01:30]} 5. cxd5 {[%emt 0:00:30]} d6 {[%emt 0:00:30]} 6. Bg2 {[%emt 0:01:30]} g6 {[%emt 0:01:30]} 7. Nf3 {[%emt 0:02:30]} Bg7 {[%emt 0:03:30]} 8. h4 {[%emt 0:03:30]} Bg4 {[%emt 0:09:30]} 9. Nh2 {[%emt 0:05:30]} Bc8 {[%emt 0:04:30]} 10. Nf3 {[%emt 0:04:30]} Bg4 {[%emt 0:04:30]} 11. Nh2 {[%emt 0:03:30]} Bc8 {[%emt 0:00:30]} 12. Nf3 {[%emt 0:00:30]} Bg4 {[%emt 0:00:30]} 13. Nh2 {[%emt 0:00:00]} Bc8 {[%emt 0:00:00]} 1/2-1/2

[Event "ESTCC 50 2019"]
[Site "Mali Losinj"]
[Date "2019.09.21"]
[Round "4.12"]
[White "Ernst, Michael"]
[Black "Detter, Peter"]
[Result "1/2-1/2"]
[ECO "A43"]
[WhiteElo "2199"]
[BlackElo "1982"]
[Annotator "NA"]
[PlyCount "61"]
[EventDate "2019.09.18"]
[EventType "team-tourn"]
[EventCountry "CRO"]
[SourceTitle "playchess.com"]
[Source "ChessBase"]
[SourceQuality "1"]
[WhiteTeam "Austria"]
[BlackTeam "Austria"]
[WhiteTeamCountry "AUT"]
[BlackTeamCountry "AUT"]
[TimeControl "40/5400+30:1800+30"]

1. d4 {[%emt 0:00:30]} c5 {[%emt 0:00:30]} 2. d5 {[%emt 0:01:30]} Nf6 {[%emt 0:00:30]} 3. Nc3 {[%emt 0:01:30]} d6 {[%emt 0:00:30]} 4. e4 {[%emt 0:00:30]} g6 {[%emt 0:00:30]} 5. Nf3 {[%emt 0:00:30]} Bg7 {[%emt 0:00:30]} 6. Be2 {[%emt 0:01:30]} O-O {[%emt 0:00:30]} 7. O-O {[%emt 0:00:00]} b6 {[%emt 0:06:30]} 8. h3 {[%emt 0:05:00]} Ba6 {[%emt 0:01:30]} 9. a4 {[%emt 0:02:30]} Bxe2 {[%emt 0:01:30]} 10. Qxe2 {[%emt 0:00:30]} a6 {[%emt 0:03:30]} 11. Bf4 {[%emt 0:01:30]} Nbd7 {[%emt 0:02:30]} 12. Rad1 {[%emt 0:07:30]} Ne8 {[%emt 0:05:30]} 13. Rfe1 {[%emt 0:06:30]} Ne5 {[%emt 0:08:30]} 14. Nd2 {[%emt 0:03:30]} Nc7 {[%emt 0:04:30]} 15. Bg3 {[%emt 0:04:30]} b5 {[%emt 0:04:30]} 16. f4 {[%emt 0:05:30]} Nd7 {[%emt 0:01:30]} 17. axb5 {[%emt 0:03:30]} axb5 {[%emt 0:00:30]} 18. Nxb5 {[%emt 0:01:30]} Nxb5 {[%emt 0:00:30]} 19. Qxb5 {[%emt 0:00:00]} Rb8 {[%emt 0:00:30]} 20. Qd3 {[%emt 0:01:00]} Rxb2 {[%emt 0:02:30]} 21. Nc4 {[%emt 0:00:30]} Rb4 {[%emt 0:04:30]} 22. e5 {[%emt 0:02:30]} Nb6 {[%emt 0:03:30]} 23. Nxb6 {[%emt 0:07:30]} Qxb6 {[%emt 0:01:30]} 24. Kh1 {[%emt 0:00:30]} Rd4 {[%emt 0:07:30]} 25. Qe3 {[%emt 0:02:30]} Rd8 {[%emt 0:10:30]} 26. c3 {[%emt 0:04:30]} Rxd1 {[%emt 0:00:30]} 27. Rxd1 {[%emt 0:00:30]} Qb3 {[%emt 0:03:30]} 28. Qd3 {[%emt 0:00:30]} c4 {[%emt 0:02:30]} 29. Qd2 {[%emt 0:01:30]} Ra8 {[%emt 0:00:30]} 30. Qe1 {[%emt 0:05:30]} Qc2 {[%emt 0:10:10]} 31. Rc1 {[%emt 0:02:30]} 1/2-1/2